bitfinex/quotes_SOLUSD_20240726
["timestamp","ask_amount","ask_price","bid_price","bid_amount"]
[1721996410689,15.67491457,178.85,178.84,13.51]
[1721996410897,31.80869788,178.85,178.84,13.51]
[1721996411087,10.08361457,178.85,178.84,13.51]
[1721996411300,15.67461457,178.86,178.84,13.51]
[1721996411505,15.67461457,178.86,178.8,6.3971448]
[1721996411506,10.08361457,178.85,178.81,5.5924]
[1721996411797,21.72448331,178.87,178.84,13.51]
[1721996411999,8.76761874,178.88,178.81,5.5924]
[1721996412000,14.35801874,178.88,178.86,13.51]
[1721996412206,10.0826657,178.87,178.86,13.51]
[1721996412499,31.80553082,178.87,178.86,13.51]
[1721996412700,26.21493082,178.87,178.86,13.51]
[1721996414111,40.92207066,178.94,178.86,13.51]
[1721996414112,16.13055084,178.92,178.86,13.51]
[1721996414282,10.07991,178.91,178.9,13.51]
[1721996414476,31.79645817,178.94,178.9,13.51]
[1721996414676,10.07991,178.93,178.9,13.51]
[1721996414898,10.07991,178.94,178.91,13.51]
[1721996415292,10.07991,178.94,178.9,13.51]
[1721996416303,10.07937658,178.93,178.9,13.51]
[1721996416485,10.07937658,178.94,178.9,13.51]
[1721996416688,10.07937658,178.93,178.9,13.51]
[1721996416889,10.07937658,178.92,178.9,13.51]
[1721996417195,10.07939745,178.91,178.9,13.51]
[1721996417384,10.07939745,178.93,178.9,13.51]
[1721996417588,16.12703592,178.93,178.9,13.51]
[1721996417793,10.07939638,178.92,178.9,13.51]
[1721996418105,5.5884,178.95,178.91,13.51]
[1721996418309,31.79479116,178.95,178.91,13.51]
[1721996418607,26.20639116,178.94,178.91,13.51]
[1721996418782,10.07935524,178.93,178.91,13.51]
[1721996418983,15.66775524,178.95,178.91,13.51]
[1721996419293,10.07935524,178.94,178.91,13.51]
[1721996419611,10.07935524,178.93,178.91,13.51]
[1721996419804,10.07935524,178.94,178.91,13.51]
[1721996420010,10.07935524,178.93,178.91,13.51]
[1721996420299,10.07935524,178.92,178.91,13.51]
[1721996420699,21.71493592,178.96,178.91,13.51]
[1721996420897,16.12703592,178.94,178.91,13.51]
[1721996421209,10.078754,178.93,178.91,13.51]
[1721996421592,21.71493592,178.96,178.91,13.51]
[1721996421791,10.07871671,178.95,178.91,13.51]
[1721996422010,31.79365263,178.96,178.91,13.51]
[1721996422202,10.07871671,178.95,178.91,13.51]
[1721996422508,10.07871671,178.95,178.92,13.51]
[1721996422725,10.07871671,178.95,178.94,13.51]
[1721996422883,10.07871671,178.96,178.94,13.51]
[1721996423083,5.5866,179.0,178.95,13.51]
[1721996423280,15.66351997,179.0,178.95,13.51]
[1721996423482,5.5866,179.0,178.95,13.51]
[1721996423698,15.66351997,179.0,178.95,13.51]
[1721996423900,10.07667869,178.99,178.97,13.51]
[1721996424199,10.07667869,178.98,178.97,13.51]
[1721996425415,21.70998864,179.01,178.97,13.51]
[1721996425708,5.83129348,179.03,178.97,13.51]
[1721996425709,10.07661103,179.0,178.99,13.51]
[1721996425886,10.07661103,179.02,178.99,13.51]
[1721996426090,21.70777397,179.04,178.97,16.0693]
[1721996426091,10.07661103,179.01,179.0,13.51]
[1721996426290,5.5861,179.02,178.97,16.0693]
[1721996426512,15.66271103,179.02,178.97,16.0693]
[1721996426815,5.5863,179.01,178.97,16.0693]
[1721996426992,15.66261103,179.02,178.97,16.0693]
[1721996427189,10.07630483,179.01,178.97,16.0693]
[1721996427510,10.07630483,179.01,178.99,13.51]
[1721996427708,21.70752102,179.04,179.0,13.51]
[1721996427919,10.07638282,179.03,179.0,13.51]
[1721996428125,15.66208282,179.03,178.99,13.51]
[1721996428299,5.5863,179.01,178.97,16.0693]
[1721996428816,10.07638282,179.01,178.97,16.0693]
[1721996429033,10.07638282,179.01,178.97,29.5793]
[1721996429529,23.58638282,179.01,178.96,13.51]
[1721996429820,29.17298282,179.0,178.95,13.51]
[1721996430016,19.0966,179.0,178.95,13.51]
[1721996430326,13.51,178.99,178.93,29.6663]
[1721996430528,19.0975,178.97,178.92,19.7886]
[1721996430694,13.51,178.96,178.92,6.2786]
[1721996431223,13.51,178.98,178.93,13.51]
[1721996431392,13.51,178.99,178.93,13.51]
[1721996431793,13.51,178.99,178.93,19.0987]
[1721996432003,13.51,178.97,178.92,19.7886]
[1721996432203,13.51,178.96,178.92,6.2786]
[1721996432421,13.51,178.95,178.9,13.51]
[1721996432717,13.51,178.95,178.89,35.6148]
[1721996432897,13.51,178.95,178.9,13.51]
[1721996433090,19.0983,178.95,178.89,35.6148]
[1721996433296,16.12309088,178.99,178.87,19.8683]
[1721996433297,13.51,178.92,178.87,19.8683]
[1721996433698,13.51,178.91,178.87,6.3583]
[1721996434419,13.51,178.89,178.84,13.51]
[1721996434802,13.51,178.89,178.83,19.1018]
[1721996435623,13.51,178.89,178.84,19.1014]
[1721996435809,13.51,178.92,178.86,19.1008]
[1721996436010,13.51,178.92,178.87,19.1006]
[1721996436312,5.5888,178.93,178.86,5.5908]
[1721996436516,5.5891,178.92,178.86,5.5908]
[1721996437131,5.5888,178.93,178.86,5.5908]
[1721996437502,5.5891,178.92,178.86,5.5908]
[1721996437914,10.08054151,178.94,178.84,5.5912]
[1721996438228,45.0,178.93,178.84,5.5912]
[1721996438529,5.5899,178.9,178.81,22.3859]
[1721996439012,5.5899,178.9,178.84,5.5913]
[1721996439199,5.5894,178.91,178.81,22.3859]
[1721996439517,15.66964151,178.92,178.81,22.3859]
[1721996439720,5.5888,178.93,178.86,5.5907]
[1721996439916,15.66934151,178.93,178.86,5.5907]
[1721996440126,15.66934151,178.93,178.87,5.5905]
[1721996440427,22.3002409,178.95,178.87,5.5905]
[1721996440606,10.08002211,178.94,178.87,5.5905]
[1721996440924,10.08002211,178.94,178.88,5.5902]
[1721996441115,15.66852211,178.94,178.88,5.5902]
[1721996441839,5.5885,178.94,178.88,5.5902]
[1721996442013,5.5888,178.93,178.82,1.11801745]
[1721996442216,5.5888,178.93,178.83,1.11798887]
[1721996442513,10.08002211,178.94,178.89,5.5899]
[1721996442829,10.08002211,178.94,178.9,5.5896]
[1721996443142,10.08002211,178.93,178.9,5.5896]
[1721996443320,5.588,178.96,178.9,5.5896]
[1721996443518,5.588,178.96,178.89,5.5899]
[1721996443832,5.5882,178.95,178.89,5.5899]
[1721996444037,10.07913249,178.96,178.88,21.5177]
[1721996444038,5.5885,178.94,178.88,27.1079]
[1721996444225,5.5885,178.94,178.88,21.5177]
[1721996445107,5.5885,178.94,178.88,27.1079]
[1721996446015,5.5882,178.95,178.88,27.1079]
[1721996447525,26.20681215,178.96,178.88,21.5177]
[1721996447749,5.589,178.93,178.88,21.5177]
[1721996448546,5.5891,178.92,178.88,21.5177]
[1721996448918,5.5895,178.91,178.88,6.0131]
[1721996449112,5.5897,178.9,178.84,27.4012]
[1721996449943,5.5894,178.91,178.85,5.5912]
[1721996450116,5.5894,178.91,178.84,27.4011]
[1721996450316,5.5897,178.9,178.84,27.4011]
[1721996450742,5.5894,178.91,178.85,5.5912]
[1721996451449,13.972,178.93,178.84,21.8097]
[1721996451611,41.022,178.93,178.84,21.8097]
[1721996451819,5.5904,178.88,178.8,6.8797448]
[1721996452143,5.5904,178.88,178.81,5.5922]
[1721996452845,5.59,178.89,178.83,5.5918]
[1721996453437,5.5903,178.88,178.82,5.5921]
[1721996453743,5.5903,178.88,178.81,5.5924]
[1721996454448,5.83271725,178.9,178.8,6.8797448]
[1721996454629,5.5902,178.89,178.83,5.5916]
[1721996454822,5.5903,178.88,178.82,5.5921]
[1721996457420,5.5903,178.88,178.8,6.8797448]
[1721996457421,5.5901,178.89,178.83,5.5919]
[1721996458322,5.5901,178.89,178.83,19.1219]
[1721996458323,19.1201,178.89,178.83,19.1219]
[1721996459059,19.12,178.89,178.83,19.1218]
[1721996459349,19.12,178.89,178.84,13.53]
[1721996459558,5.5899,178.9,178.85,13.53]
[1721996459755,5.59,178.89,178.86,13.53]
[1721996460053,5.5899,178.9,178.86,13.53]
[1721996460224,5.5899,178.9,178.85,13.53]
[1721996460424,19.1199,178.9,178.85,13.53]
[1721996460621,5.5899,178.9,178.85,13.53]
[1721996461256,5.59,178.89,178.85,13.53]
[1721996462355,5.5906,178.87,178.85,13.53]
[1721996462555,5.5903,178.88,178.85,13.53]
[1721996462732,5.5903,178.88,178.84,13.53]
[1721996463127,5.59,178.89,178.84,13.53]
[1721996463534,5.5903,178.88,178.84,13.53]
[1721996463943,5.5901,178.89,178.84,13.53]
[1721996464361,5.5903,178.88,178.84,13.53]
[1721996465136,5.5901,178.89,178.84,13.53]
[1721996466936,13.53,178.91,178.86,5.5908]
[1721996467250,19.1194,178.91,178.85,19.1212]
[1721996469441,13.53,178.9,178.8,6.8797448]
[1721996469661,5.5902,178.89,178.85,13.53]
[1721996470563,19.1198,178.9,178.85,13.53]
[1721996470931,16.12908465,178.92,178.85,13.53]
[1721996470932,5.5894,178.91,178.85,19.121]
[1721996471132,19.1194,178.91,178.85,19.121]
[1721996472059,19.1197,178.9,178.85,19.121]
[1721996472453,13.53,178.9,178.85,19.121]
[1721996473340,13.53,178.91,178.86,5.5909]
[1721996473539,16.12830104,178.91,178.89,5.5898]
[1721996473861,13.53,178.94,178.89,13.53]
[1721996473862,16.12830104,178.93,178.89,13.53]
[1721996474041,16.12830104,178.97,178.9,13.53]
[1721996474235,5.5881,178.95,178.91,13.53]
[1721996474430,19.1178,178.96,178.91,13.53]
[1721996474657,35.24580104,178.98,178.92,13.53]
[1721996474854,21.71590104,178.97,178.92,13.53]
[1721996475064,5.5876,178.97,178.92,13.53]
[1721996475368,19.1176,178.97,178.91,19.119]
[1721996475661,19.1176,178.97,178.91,13.53]
[1721996477461,5.5879,178.96,178.91,13.53]
[1721996477664,13.53,178.93,178.87,19.6795]
[1721996477874,13.53,178.91,178.87,6.1495]
[1721996478164,20.0,178.98,178.87,6.1495]
[1721996478165,13.53,178.89,178.87,6.1495]
[1721996478349,13.53,178.89,178.84,13.53]
[1721996478554,13.53,178.89,178.83,13.53]
[1721996478941,13.53,178.88,178.83,13.53]
[1721996479156,13.53,178.88,178.83,5.5918]
[1721996480449,13.53,178.86,178.82,22.0182]
[1721996480649,13.53,178.85,178.82,6.2873]
[1721996481077,13.53,178.84,178.82,6.2873]
[1721996481279,13.53,178.83,178.8,0.8043448]
[1721996482182,16.12313085,178.89,178.8,0.8043448]
[1721996482183,13.53,178.82,178.8,0.8043448]
[1721996483270,13.53,178.81,178.8,0.8043448]
[1721996484880,22.29801206,178.81,178.8,0.8043448]
[1721996485378,8.76801206,178.81,178.8,0.8043448]
[1721996485762,8.76801206,178.81,178.8,14.3343448]
[1721996487184,8.76801206,178.81,178.8,19.9271448]
[1721996488558,8.76801206,178.81,178.8,14.3343448]
[1721996488758,8.76801206,178.81,178.8,0.8043448]
[1721996496681,8.76801206,178.81,178.8,6.3971448]
[1721996496890,8.76801206,178.81,178.8,19.9271448]
[1721996498290,8.76801206,178.81,178.8,0.8043448]
[1721996499597,8.76801206,178.81,178.8,6.3971448]
[1721996500290,8.76801206,178.81,178.8,19.9271448]
[1721996500596,29.66302236,178.86,178.81,5.5923]
[1721996500893,8.76665531,178.85,178.81,5.5923]
[1721996502980,19.121,178.86,178.8,19.9270448]
[1721996503695,13.53,178.86,178.81,5.5925]
[1721996504496,19.1209,178.86,178.8,19.9270448]
[1721996504902,5.5912,178.85,178.8,19.9270448]
[1721996505087,19.1212,178.85,178.8,19.9270448]
[1721996505398,13.53,178.85,178.8,19.9270448]
[1721996505709,19.121,178.86,178.8,19.9270448]
[1721996505916,19.121,178.86,178.81,13.53]
[1721996507492,5.5912,178.85,178.81,13.53]
[1721996507694,5.5912,178.85,178.8,19.9270448]
[1721996507897,15.67432543,178.85,178.8,19.9270448]
[1721996508089,10.08312543,178.85,178.8,19.9270448]
[1721996508412,10.08312543,178.85,178.81,19.1223]
[1721996508581,45.336708,178.88,178.82,13.53]
[1721996508787,26.216108,178.87,178.82,13.53]
[1721996508996,10.08312543,178.86,178.82,13.53]
[1721996509215,16.13298257,178.87,178.82,14.64827759]
[1721996509396,10.08285192,178.86,178.82,13.53]
[1721996510600,8.76665579,178.89,178.85,13.53]
[1721996510885,5.5894,178.91,178.86,13.53]
[1721996511083,15.66967262,178.91,178.86,13.53]
[1721996511283,31.79883106,178.91,178.86,13.53]
[1721996511623,10.08027262,178.9,178.86,13.53]
[1721996512391,15.66997262,178.9,178.86,13.53]
[1721996512716,10.08033874,178.89,178.85,13.53]
[1721996512894,15.67003874,178.9,178.85,13.53]
[1721996513100,5.5897,178.9,178.85,13.53]
[1721996513416,13.53,178.9,178.85,5.5912]
[1721996514815,19.1194,178.91,178.85,19.1212]
[1721996515003,16.12860941,178.93,178.88,5.5903]
[1721996515203,10.07914661,178.92,178.87,5.5906]
[1721996515403,5.5889,178.93,178.89,13.53]
[1721996515611,13.53,178.93,178.87,19.637]
[1721996515801,10.07914661,178.92,178.87,25.2275]
[1721996516009,13.53,178.93,178.88,5.5902]
[1721996516199,10.0789721,178.92,178.88,5.5902]
[1721996516690,10.0789721,178.92,178.88,19.1202]
[1721996516916,10.0789721,178.93,178.88,19.1202]
[1721996519221,19.1184,178.94,178.89,13.53]
[1721996519538,10.07888939,178.93,178.88,19.1202]
[1721996521819,10.07891027,178.92,178.88,19.1202]
[1721996522030,10.07891027,178.93,178.88,19.1202]
[1721996522417,10.07891027,178.92,178.88,19.1202]
[1721996522621,10.07891027,178.93,178.88,19.1202]
[1721996522946,10.07891027,178.92,178.88,19.1202]
[1721996523146,13.53,178.89,178.83,5.5918]
[1721996523442,13.53,178.87,178.83,5.5918]
[1721996523612,13.53,178.85,178.81,21.0549]
[1721996523816,13.53,178.85,178.82,5.5921]
[1721996524045,54.12,178.92,178.82,5.5921]
[1721996524046,13.53,178.87,178.83,5.5917]
[1721996524347,13.53,178.88,178.83,5.5917]
[1721996525046,13.53,178.88,178.83,19.1217]
[1721996527133,13.53,178.88,178.83,13.53]
[1721996527339,13.53,178.87,178.81,28.9925]
[1721996527632,19.1206,178.87,178.81,34.5847]
[1721996528018,13.53,178.86,178.81,34.5847]
[1721996529652,13.53,178.86,178.82,5.5921]
[1721996530149,13.53,178.87,178.82,5.5921]
[1721996530653,19.1204,178.88,178.82,19.1221]
[1721996530829,13.53,178.87,178.82,5.5921]
[1721996533950,13.53,178.88,178.83,5.5918]
[1721996534454,13.53,178.87,178.83,5.5918]
[1721996535618,13.53,178.87,178.82,19.1221]
[1721996536239,13.53,178.87,178.82,5.5921]
[1721996536836,14.49670028,178.87,178.82,5.5921]
[1721996537125,14.49670028,178.87,178.82,13.53]
[1721996537126,17.09825296,178.87,178.82,13.53]
[1721996537343,17.09825296,178.87,178.83,13.53]
[1721996537344,0.96670028,178.87,178.83,13.53]
[1721996537623,14.49670028,178.87,178.81,15.4625]
[1721996537825,14.49670028,178.87,178.81,28.9925]
[1721996538541,13.53,178.86,178.8,14.3343448]
[1721996538746,13.53,178.85,178.8,14.3343448]
[1721996539349,13.53,178.85,178.81,5.5922]
[1721996540351,13.53,178.85,178.8,14.3343448]
[1721996540649,16.13150345,178.86,178.82,5.5922]
[1721996540850,16.13150345,178.86,178.83,5.5917]
[1721996541036,0.96670028,178.87,178.84,5.5915]
[1721996541931,16.13119001,178.88,178.86,5.5909]
[1721996542159,35.25039001,178.92,178.86,19.1209]
[1721996542364,19.1192,178.92,178.86,19.1209]
[1721996542526,35.24801426,178.92,178.86,19.1209]
[1721996542724,29.65881426,178.92,178.87,5.5904]
[1721996542946,16.12881426,178.92,178.88,5.5902]
[1721996543132,35.24701426,178.95,178.89,19.12]
[1721996543435,35.24701426,178.95,178.9,13.53]
[1721996543436,16.12881426,178.94,178.9,13.53]
[1721996543643,16.12881426,178.97,178.9,13.53]
[1721996543944,16.12881426,178.97,178.91,13.53]
[1721996543945,29.65881426,178.97,178.91,13.53]
[1721996544651,35.24661426,178.97,178.91,19.1191]
[1721996544855,35.24661426,178.97,178.91,13.53]
[1721996545225,21.71123028,178.96,178.91,13.53]
[1721996545547,5.5878,178.96,178.91,13.53]
[1721996545756,13.53,178.97,178.91,19.1193]
[1721996546928,19.1176,178.97,178.91,19.1193]
[1721996548351,13.53,178.95,178.9,13.53]
[1721996548529,13.53,178.95,178.89,5.5897]
[1721996548530,19.1183,178.95,178.89,5.5897]
[1721996548731,5.5884,178.94,178.85,6.0545]
[1721996548931,5.5884,178.94,178.89,13.53]
[1721996549627,19.1182,178.95,178.89,13.53]
[1721996550146,13.53,178.96,178.91,13.53]
[1721996550923,13.53,178.97,178.91,13.53]
[1721996551154,19.1175,178.97,178.91,19.1193]
[1721996551354,5.5878,178.96,178.91,13.53]
[1721996551533,19.1178,178.96,178.9,5.5896]
[1721996551729,16.12453043,178.99,178.89,13.53]
[1721996551730,5.5889,178.93,178.89,13.53]
[1721996551932,30.09233043,178.99,178.85,11.6454]
[1721996551933,19.1194,178.91,178.85,11.6454]
[1721996552159,13.53,178.9,178.85,25.1754]
[1721996552332,19.1201,178.89,178.85,6.0545]
[1721996552654,13.53,178.88,178.85,6.0545]
[1721996553250,13.53,178.88,178.83,21.3387]
[1721996553450,13.53,178.88,178.81,6.3675]
[1721996553451,13.53,178.86,178.81,19.8975]
[1721996553655,13.53,178.86,178.81,6.3675]
[1721996554157,24.19218226,178.91,178.81,6.3675]
[1721996554358,45.0,178.9,178.82,5.592]
[1721996554541,21.72013218,178.89,178.83,5.5918]
[1721996554735,16.13013218,178.88,178.83,5.5918]
[1721996555055,21.72043218,178.88,178.82,5.5921]
[1721996555264,5.5907,178.87,178.81,11.96]
[1721996555829,5.5903,178.88,178.82,5.5921]
[1721996563554,6.5568935,178.88,178.82,5.5921]
[1721996567881,0.9665935,178.88,178.84,5.5915]
[1721996568853,5.5894,178.91,178.85,5.591]
[1721996569052,16.13081896,178.92,178.86,1.11809308]
[1721996569269,16.13081896,178.92,178.87,5.5905]
[1721996569465,5.5891,178.92,178.86,5.5908]
[1721996569894,5.5891,178.92,178.85,16.2607]
[1721996569895,5.5894,178.91,178.85,21.8518]
[1721996570186,27.07,178.94,178.85,16.2607]
[1721996570364,5.5901,178.89,178.85,16.2607]
[1721996570554,16.13081896,178.93,178.85,16.2607]
[1721996570761,30.10251896,178.94,178.85,16.2607]
[1721996571275,5.5896,178.91,178.85,21.8519]
[1721996572774,21.71875783,178.91,178.85,21.8519]
[1721996573073,5.5897,178.9,178.85,21.8519]
[1721996574210,5.5897,178.9,178.85,35.3819]
[1721996575684,19.1194,178.91,178.85,35.3819]
[1721996576079,21.71807479,178.91,178.86,14.6480547]
[1721996576272,5.5894,178.91,178.86,13.53]
[1721996576473,29.65867479,178.93,178.88,13.53]
[1721996576671,13.53,178.93,178.88,13.53]
[1721996577085,5.5891,178.92,178.88,13.53]
[1721996577268,5.5891,178.92,178.87,19.8156]
[1721996577468,5.5891,178.92,178.87,25.4062]
[1721996578068,5.5891,178.92,178.87,19.8156]
[1721996578386,19.1191,178.92,178.87,19.8156]
[1721996583003,19.1191,178.92,178.87,25.4062]
[1721996583695,13.53,178.89,178.85,16.2607]
[1721996583872,13.53,178.88,178.85,16.2607]
[1721996584070,13.9708,178.95,178.85,16.2607]
[1721996584071,13.53,178.89,178.85,16.2607]
[1721996584292,13.53,178.89,178.85,21.8519]
[1721996585906,13.53,178.89,178.85,16.2607]
[1721996586107,13.53,178.88,178.85,16.2607]
[1721996586678,13.53,178.89,178.85,16.2607]
[1721996586887,13.53,178.89,178.85,21.8519]
[1721996587808,13.53,178.9,178.85,21.8519]
[1721996588015,13.53,178.89,178.85,21.8519]
[1721996588307,13.53,178.89,178.85,16.2607]
[1721996588514,19.12,178.89,178.85,16.2607]
[1721996589280,13.53,178.89,178.85,21.8519]
[1721996591101,13.53,178.89,178.85,16.2607]
[1721996592688,16.1292079,178.92,178.85,16.2607]
[1721996592885,13.53,178.9,178.85,21.8519]
[1721996593095,19.1198,178.9,178.85,16.2607]
[1721996593325,13.53,178.89,178.85,16.2607]
[1721996593622,13.53,178.9,178.85,16.2607]
[1721996593931,13.53,178.9,178.86,5.5909]
[1721996594503,13.53,178.9,178.85,35.3818]
[1721996596305,19.1197,178.9,178.85,35.3818]
[1721996596622,19.1197,178.9,178.85,16.2607]
[1721996597009,13.53,178.89,178.85,16.2607]
[1721996597599,29.65887481,178.89,178.85,16.2607]
[1721996597806,16.12887481,178.88,178.85,16.2607]
[1721996598120,35.24887481,178.89,178.85,16.2607]
[1721996598306,19.1206,178.88,178.85,16.2607]
[1721996599245,13.53,178.88,178.85,16.2607]
[1721996600211,13.53,178.87,178.82,11.6827]
[1721996600619,13.53,178.88,178.84,5.5915]
[1721996601008,29.66061682,178.89,178.85,5.5912]
[1721996601209,13.53,178.89,178.85,5.5912]
[1721996601434,29.66061682,178.89,178.85,5.5912]
[1721996601618,16.13061682,178.89,178.85,5.5912]
[1721996601819,30.62712759,178.9,178.85,5.5912]
[1721996602120,14.49651077,178.9,178.85,5.5912]
[1721996602307,30.62598567,178.9,178.85,5.5912]
[1721996602628,14.49651077,178.9,178.85,5.5912]
[1721996602810,30.62618788,178.9,178.85,5.5912]
[1721996603619,30.62618788,178.9,178.85,19.1212]
[1721996603927,16.12967711,178.9,178.87,34.8202]
[1721996604260,16.12967711,178.91,178.87,34.8202]
[1721996604414,13.53,178.92,178.87,34.8202]
[1721996605320,16.12967711,178.93,178.89,19.1199]
[1721996605516,13.53,178.94,178.89,19.1199]
[1721996607011,19.1182,178.95,178.89,19.1199]
[1721996607921,5.5882,178.95,178.9,19.1196]
[1721996608439,19.1179,178.96,178.9,19.1196]
[1721996608615,21.71397751,178.97,178.91,19.1193]
[1721996608821,35.24397751,178.97,178.91,19.1193]
[1721996609037,16.12647751,178.96,178.91,19.1193]
[1721996609235,19.1175,178.97,178.91,19.1193]
[1721996609429,35.24397751,178.97,178.91,19.1193]
[1721996609637,22.72963165,179.0,178.93,5.5886]
[1721996609638,21.71337751,178.99,178.93,5.5886]
[1721996609936,16.12647751,178.98,178.94,35.6207]
[1721996610143,35.24337751,178.99,178.94,35.6207]
[1721996610442,16.12647751,178.98,178.94,35.6207]
[1721996610609,29.65647751,179.01,178.96,13.53]
[1721996610955,16.12647751,179.0,178.95,14.64744173]
[1721996611108,13.53,179.01,178.95,14.64744173]
[1721996611311,13.53,179.0,178.95,14.64744173]
[1721996611534,13.53,179.0,178.96,1.11744206]
[1721996611765,19.1163,179.01,178.96,1.11744206]
[1721996611938,19.1163,179.01,178.95,13.53]
[1721996611939,19.116,179.02,178.97,14.64738514]
[1721996612149,35.23670536,179.02,178.97,13.53]
[1721996612322,21.70630536,179.03,178.97,13.53]
[1721996612525,29.65070536,179.02,178.97,13.53]
[1721996612731,16.11969276,179.01,178.96,13.53]
[1721996613139,16.12011592,179.01,178.96,13.53]
[1721996613447,35.23651592,179.01,178.95,13.53]
[1721996613739,16.12011592,179.0,178.95,13.53]
[1721996613944,19.1164,179.01,178.95,13.53]
[1721996614518,13.53,179.01,178.96,13.53]
[1721996614745,13.53,179.02,178.96,13.53]
[1721996615346,13.53,179.02,178.97,13.53]
[1721996615712,29.65024921,179.02,178.97,13.53]
[1721996615915,13.53,179.02,178.97,13.53]
[1721996616147,16.12024921,179.04,178.97,13.53]
[1721996616324,13.53,179.02,178.97,13.53]
[1721996616750,13.53,179.01,178.94,22.0907]
[1721996616919,13.53,179.01,178.95,13.53]
[1721996617125,13.53,179.0,178.94,35.6207]
[1721996618031,19.1166,179.0,178.94,35.6207]
[1721996618847,13.53,178.99,178.94,22.0907]
[1721996619351,13.53,178.99,178.94,35.6207]
[1721996619822,13.53,179.0,178.94,35.6207]
[1721996620241,13.53,179.01,178.95,13.53]
[1721996621021,16.12138493,179.04,178.97,13.53]
[1721996621242,13.53,179.05,178.99,13.53]
[1721996622158,29.64980867,179.05,178.99,13.53]
[1721996622445,16.11980867,179.04,178.99,13.53]
[1721996622653,16.11981039,179.04,178.99,13.53]
[1721996622850,21.70451039,179.06,178.99,13.53]
[1721996623065,29.64981039,179.05,178.99,13.53]
[1721996623355,16.11981039,179.04,178.99,13.53]
[1721996623560,19.115,179.05,178.99,13.53]
[1721996623728,35.23481039,179.05,178.99,13.53]
[1721996623928,19.115,179.05,178.99,13.53]
[1721996624960,19.115,179.05,179.0,1.11720385]
[1721996627937,19.115,179.05,178.99,13.53]
[1721996628133,16.11818704,179.06,179.0,35.541]
[1721996628340,16.11818704,179.06,179.01,13.53]
[1721996628538,29.64818704,179.06,179.01,13.53]
[1721996628754,35.23288704,179.06,179.01,13.53]
[1721996628958,19.1147,179.06,179.01,13.53]
[1721996629262,19.1147,179.06,179.0,35.541]
[1721996629428,35.23280142,179.06,179.0,35.541]
[1721996629632,19.1147,179.06,179.0,35.541]
[1721996630034,35.23288532,179.06,179.01,13.53]
[1721996631465,29.64818532,179.06,179.01,13.53]
[1721996632331,13.53,179.06,179.01,13.53]
[1721996632946,13.53,179.03,179.0,22.011]
[1721996633158,13.53,179.01,178.95,13.53]
[1721996633363,13.53,179.0,178.94,35.4185]
[1721996633544,13.53,178.99,178.94,35.4185]
[1721996634145,13.53,179.0,178.94,35.4185]
[1721996635241,13.53,179.01,178.95,13.53]
[1721996635760,5.5859,179.02,178.95,13.53]
[1721996635945,13.53,179.01,178.95,13.53]
[1721996637268,13.53,179.0,178.95,13.53]
[1721996637446,19.1166,179.0,178.95,13.53]
[1721996637651,19.1166,179.0,178.94,35.4185]
[1721996637961,13.53,179.01,178.95,13.53]
[1721996638143,13.53,179.01,178.96,13.53]
[1721996639052,13.53,179.01,178.95,13.53]
[1721996640664,13.53,179.0,178.94,21.8885]
[1721996640877,16.12017586,179.04,178.94,21.8885]